fUST/lending_fUST_20251025
["ID","MTS","AMOUNT","RATE_DAILY","PERIOD"]
[392339492,1761364247193,-199.0,0.0003041,17]
[392339493,1761364247202,-864.0,0.00030419,30]
[392339494,1761364247212,-310.22142031,0.00030684,18]
[392339495,1761364247221,-1079.2309512,0.00030761,2]
[392339496,1761364247230,-404.0,0.0003081,14]
[392339497,1761364247239,-168.350327,0.00030987,7]
[392339498,1761364247248,-157.865068,0.00030987,7]
[392339499,1761364247257,-303.8835489,0.0003099,2]
[392339500,1761364247266,-1109.13250294,0.00031,2]
[392339501,1761364247275,-4092.35204184,0.0003105,3]
[392339502,1761364247284,-404.0,0.00031068,14]
[392339503,1761364247293,-30000.0,0.0003112,2]
[392339504,1761364247302,-151.0,0.00031146,5]
[392339505,1761364247311,-2600.0,0.00031212,7]
[392339506,1761364247321,-168.350327,0.00031743,7]
[392339507,1761364247331,-157.865068,0.00031743,7]
[392339508,1761364247340,-1302.21,0.00031852,15]
[392339509,1761364247350,-33119.11721463,0.000319,2]
[392339510,1761364247359,-4022.07,0.000319,2]
[392339511,1761364247368,-1302.21,0.00031952,15]
[392339512,1761364247377,-1302.21,0.00032052,15]
[392339513,1761364247388,-1302.21,0.00032152,15]
[392339514,1761364247397,-168.350327,0.00032243,3]
[392339515,1761364247406,-157.865068,0.00032243,3]
[392339516,1761364247415,-1302.21,0.00032252,15]
[392339517,1761364247423,-1302.21,0.00032352,15]
[392339518,1761364247433,-151.0,0.00032401,6]
[392339519,1761364247442,-1302.21,0.00032452,15]
[392339520,1761364247451,-2000.0,0.00032497,7]
[392339521,1761364247460,-833.69,0.000325,7]
[392339522,1761364247469,-168.350327,0.000325,7]
[392339523,1761364247478,-157.865068,0.000325,7]
[392339524,1761364247487,-1302.21,0.00032552,15]
[392339525,1761364247497,-302.0,0.00032573,2]
[392339526,1761364247506,-404.0,0.00032622,14]
[392339527,1761364247515,-1302.21,0.00032652,15]
[392339528,1761364247524,-1302.21,0.00032752,15]
[392339529,1761364247533,-1302.21,0.00032852,15]
[392339530,1761364247543,-2600.0,0.00032856,7]
[392339531,1761364247552,-4196.91,0.00032877,10]
[392339532,1761364247562,-3497.43,0.00032877,10]
[392339533,1761364247571,-168.350327,0.00032877,10]
[392339534,1761364247579,-1302.21,0.00032952,60]
[392339535,1761364247594,-326.0,0.00033,10]
[392339536,1761364247603,-2048.139679,0.00033,120]
[392339537,1761364247613,-122806.00521741,0.00033,6]
[392339571,1761364959518,590.672174,0.00013699,2]
[392339577,1761365340543,264.135103,0.00030137,120]
[392339874,1761365437925,-590.672174,0.00020187,2]
[392339875,1761365437934,-332.09469364,0.00020193,2]
[392339876,1761365437943,-3917.0,0.00020199,2]
[392339877,1761365437953,-300.0,0.00020199,2]
[392339878,1761365437962,-312434.44553489,0.000202,2]
[392339879,1761365437974,-1911.35040885,0.000202,2]
[392340039,1761365445872,-16680.94418309,0.000202,2]
[392340095,1761366424258,246.0,0.000201,30]
[392340109,1761366470239,417.762454,0.000201,9]
[392340264,1761366637846,-300.0,0.00018999,2]
[392340266,1761366637856,-1200.0,0.00018999,2]
[392340268,1761366637866,-342.88537917,0.00018999,2]
[392340270,1761366637875,-4495.60066339,0.00019,2]
[392340272,1761366637886,-12398.30933661,0.00019,2]
[392340274,1761366637895,-159.018334,0.00019171,2]
[392340276,1761366637904,-1137.21814417,0.00020091,2]
[392340278,1761366637913,-500.0,0.0002019,2]
[392340280,1761366637922,-500.0,0.0002019,2]
[392340282,1761366637931,-500.0,0.0002019,2]
[392340284,1761366637940,-500.0,0.0002019,2]
[392340286,1761366637949,-500.0,0.0002019,2]
[392340288,1761366637958,-500.0,0.0002019,2]
[392340290,1761366637967,-294.41558653,0.0002019,2]
[392340291,1761366637976,-500.0,0.0002019,2]
[392340293,1761366637985,-474.24222148,0.0002019,2]
[392340295,1761366637994,-500.0,0.0002019,2]
[392340297,1761366638003,-500.0,0.0002019,2]
[392340299,1761366638012,-500.0,0.0002019,2]
[392340300,1761366638021,-500.0,0.0002019,2]
[392340301,1761366638030,-500.0,0.0002019,2]
[392340302,1761366638040,-500.0,0.0002019,2]
[392340303,1761366638049,-500.0,0.0002019,2]
[392340304,1761366638059,-500.0,0.0002019,2]
[392340306,1761366638068,-500.0,0.0002019,2]
[392340307,1761366638078,-162.17690044,0.0002019,2]
[392340308,1761366638087,-500.0,0.0002019,2]
[392340309,1761366638097,-500.0,0.0002019,2]
[392340310,1761366638107,-500.0,0.0002019,2]
[392340311,1761366638116,-500.0,0.0002019,2]
[392340312,1761366638126,-500.0,0.0002019,2]
[392340313,1761366638135,-500.0,0.0002019,2]
[392340314,1761366638144,-17939.3314936,0.00020192,2]
[392340315,1761366638154,-420.0,0.00020709,2]
[392340316,1761366638163,-1541.0,0.0002081,2]
[392340317,1761366638173,-404.60474742,0.00020999,2]
[392340318,1761366638183,-540.55949023,0.00021918,2]
[392340319,1761366638192,-500.0,0.00021918,2]
[392340320,1761366638202,-500.0,0.00021918,2]
[392340321,1761366638211,-403.22146256,0.00021918,2]
[392340322,1761366638221,-723.11176509,0.00022,7]
[392340323,1761366638233,-4561.13823491,0.00022,7]
[392340324,1761366638243,-638.058,0.00022034,2]
[392340325,1761366638252,-987.473,0.00022034,2]
[392340326,1761366638262,-2166.0,0.00022034,2]
[392340327,1761366638271,-416.13,0.00022034,2]
[392340328,1761366638281,-1137.21814417,0.0002213,2]
[392340329,1761366638296,-466.32411567,0.00022999,2]
[392340330,1761366638305,-2914.52,0.0002389,10]
[392340331,1761366638316,-1000.0,0.00023899,2]
[392340332,1761366638326,-1000.0,0.00023899,2]
[392340333,1761366638337,-1000.0,0.00023899,2]
[392340334,1761366638347,-1024.89081671,0.00023899,2]
[392340335,1761366638356,-370000.0,0.000239,2]
[392340336,1761366638366,-3923.49772894,0.000239,2]
[392340337,1761366638376,-1024.5898356,0.000239,2]
[392340338,1761366638385,-200000.0,0.00024,2]
[392340339,1761366638394,-1024.5898356,0.00024063,2]
[392340340,1761366638403,-1137.21814417,0.00024168,2]
[392340341,1761366638413,-1024.5898356,0.00024225,2]
[392340342,1761366638422,-1024.5898356,0.00024388,2]
[392340343,1761366638432,-3923.49772892,0.00024417,2]
[392340344,1761366638441,-1024.5898356,0.0002455,2]
[392340345,1761366638450,-1031.79068606,0.0002465,2]
[392340346,1761366638459,-500.0,0.00024873,2]
[392340347,1761366638469,-500.0,0.00024873,2]
[392340348,1761366638478,-506.04389604,0.00024873,2]
[392340349,1761366638488,-500.0,0.00024873,2]
[392340350,1761366638498,-500.0,0.00024873,2]
[392340351,1761366638507,-661353.238003,0.000249,2]
[392340352,1761366638516,-3923.49772892,0.00024934,2]
[392340353,1761366638526,-150.0,0.00024973,2]
[392340354,1761366638535,-528.04348392,0.00024999,2]
[392340355,1761366638544,-336030.04170436,0.00025,2]
[392341236,1761366646386,-2428.77,0.0002389,10]
[392341237,1761366646395,-58703.55442681,0.00025,2]
[392341607,1761367832072,-4109.83441137,0.0002,2]
[392341608,1761367832082,-308.04822465,0.00020573,2]
[392341609,1761367832093,-983.0,0.0002229,2]
[392341610,1761367832102,-632.0,0.0002229,2]
[392341611,1761367832111,-2164.0,0.0002229,2]
[392341612,1761367832121,-150.308,0.0002229,2]
[392341613,1761367832130,-363.49690508,0.00022573,2]
[392341614,1761367832140,-2961.23,0.0002369,10]
[392341615,1761367832149,-155.91349584,0.00023699,2]
[392341616,1761367832158,-500.0,0.00023699,2]
[392341617,1761367832167,-500.0,0.00023699,2]
[392341618,1761367832176,-500.0,0.00023699,2]
[392341619,1761367832186,-500.0,0.00023699,2]
[392341620,1761367832197,-500.0,0.00023699,2]
[392341622,1761367832214,-500.0,0.00023699,2]
[392341623,1761367832223,-163.12723824,0.00023699,2]
[392341625,1761367832233,-565.24180373,0.00023699,2]
[392341627,1761367832242,-27867.70151329,0.000237,2]
[392341774,1761367837983,-989.64376497,0.0002369,10]
[392341775,1761367838039,-1478.04623503,0.0002369,10]
[392341776,1761367838048,-19015.60888085,0.000237,2]
[392342189,1761367846192,-1448.70593549,0.000237,2]
[392342205,1761367935256,531.604956,0.00013699,2]
[392342207,1761368554187,186.2481,0.00030136,120]
[392342336,1761369043795,-531.604956,0.00020187,2]
[392342337,1761369043805,-118.49330882,0.0002045,2]
[392342346,1761369046477,-176.12401323,0.0002045,2]
[392342347,1761369046486,-162.11361451,0.00021,3]
[392342348,1761369046496,-160.0,0.00022,4]
[392342349,1761369046505,-161.0,0.00022,4]
[392342350,1761369046515,-285.516,0.0002229,2]
[392342351,1761369046523,-212.272,0.0002229,2]
[392342352,1761369046533,-417.375,0.0002229,2]
[392342353,1761369046544,-347.64844002,0.0002245,2]
[392342354,1761369046553,-265.5010574,0.00022534,2]
[392342355,1761369046562,-160.0,0.00023,5]
[392342356,1761369046571,-160.0,0.00023,5]
[392342357,1761369046580,-229.47131153,0.00023599,2]
[392342358,1761369046589,-107721.25166767,0.000236,2]
[392342482,1761370759892,176.97351451,0.00018044,2]
[392342483,1761370899259,335.0878934,0.00018044,2]
[392342533,1761371255379,486.383358,0.00013699,2]
[392342564,1761371432813,-486.383358,0.00020187,2]
[392342565,1761371432823,-300.0,0.00022129,2]
[392342566,1761371432833,-29.616642,0.0002213,2]
[392342568,1761371440830,-632.0,0.0002213,2]
[392342569,1761371440840,-819.01066956,0.0002213,2]
[392342598,1761372448213,5000.0,0.000201,10]
[392342599,1761372488184,5000.0,0.000215,60]
[392342600,1761372506007,5000.0,0.000201,30]
[392342663,1761372637737,-797.13125455,0.000221,7]
[392342841,1761373832216,-444.20541913,0.00022008,2]
[392342875,1761373840247,-266.55592102,0.00022008,2]
[392342876,1761373840257,-202.86874545,0.000221,7]
[392342877,1761373840266,-301.582686,0.00022104,2]
[392342878,1761373840279,-154.110587,0.00022104,7]
[392342879,1761373840290,-55.32932601,0.00022104,7]
[392342973,1761373846088,-95.67067399,0.00022104,7]
[392342974,1761373846100,-151.0,0.00022104,7]
[392342975,1761373846111,-7.07185791,0.00022104,7]
[392342981,1761374319516,445.793998,0.00013699,2]
[392343065,1761375032482,-445.793998,0.00020187,2]
[392343067,1761375032492,-295.55103228,0.00020666,2]
[392343069,1761375032503,-194.60496972,0.00021903,2]
[392343500,1761376244554,-228.678903,0.00020876,10]
[392343501,1761376244564,-294.98067885,0.00020882,2]
[392343502,1761376244573,-151.0,0.00020887,7]
[392343503,1761376244582,-75.34041815,0.00020887,7]
[392343504,1761376244593,-78.22783485,0.00020887,7]
[392343505,1761376244603,-151.0,0.00020887,7]
[392343506,1761376244611,-300.0,0.00020887,2]
[392343507,1761376244620,-151.0,0.00020887,7]
[392343508,1761376244629,-56.47784141,0.00020887,7]
[392343509,1761376244640,-97.16551059,0.00020887,7]
[392343510,1761376244649,-155.723158,0.00020887,7]
[392343511,1761376244657,-500.0,0.00020887,2]
[392343512,1761376244666,-500.0,0.00020887,2]
[392343513,1761376244675,-500.0,0.00020887,2]
[392343514,1761376244683,-500.0,0.00020887,2]
[392343515,1761376244692,-452.50169175,0.00020887,2]
[392343516,1761376244701,-500.0,0.00020887,2]
[392343517,1761376244710,-500.0,0.00020887,2]
[392343518,1761376244718,-509.25407418,0.00020887,2]
[392343519,1761376244727,-321.9629521,0.00020887,2]
[392343520,1761376244741,-254.840696,0.00020887,7]
[392343521,1761376244750,-254.840696,0.00020887,7]
[392343522,1761376244759,-254.840696,0.00020887,7]
[392343523,1761376244768,-254.840696,0.00020887,7]
[392343524,1761376244777,-254.840696,0.00020887,7]
[392343525,1761376244786,-254.840696,0.00020887,7]
[392343526,1761376244795,-254.840696,0.00020887,7]
[392343527,1761376244804,-151.0,0.00020887,7]
[392343528,1761376244813,-254.840696,0.00020887,7]
[392343529,1761376244821,-151.0,0.00020887,7]
[392343530,1761376244830,-4191.62163069,0.00020888,2]
[392343532,1761376246405,-6154.70698679,0.00020888,2]
[392343533,1761376246414,-500.0,0.00020888,2]
[392343534,1761376246424,-151.0,0.00020888,7]
[392343535,1761376246433,-151.0,0.00020888,7]
[392343536,1761376246442,-151.0,0.00020888,7]
[392343537,1761376246451,-151.0,0.00020888,7]
[392343538,1761376246460,-151.0,0.00020888,7]
[392343539,1761376246469,-151.0,0.00020888,7]
[392343540,1761376246478,-151.0,0.00020888,7]
[392343541,1761376246487,-151.0,0.00020888,7]
[392343542,1761376246496,-152.343779,0.00020888,7]
[392343543,1761376246505,-152.311925,0.00020888,7]
[392343544,1761376246514,-151.0,0.00020888,7]
[392343545,1761376246523,-155.906244,0.00020888,7]
[392343546,1761376246533,-151.0,0.00020888,7]
[392343547,1761376246542,-151.0,0.00020888,7]
[392343548,1761376246551,-151.0,0.00020888,7]
[392343549,1761376246560,-151.0,0.00020888,7]
[392343550,1761376246569,-151.0,0.00020888,7]
[392343551,1761376246578,-274.483792,0.00020888,7]
[392343552,1761376246588,-231.443305,0.00020888,7]
[392343553,1761376246598,-488.238148,0.00020888,7]
[392343554,1761376246608,-488.238148,0.00020888,7]
[392343555,1761376246617,-488.238148,0.00020888,7]
[392343556,1761376246626,-488.238148,0.00020888,7]
[392343557,1761376246637,-488.238148,0.00020888,7]
[392343558,1761376246648,-488.238148,0.00020888,7]
[392343559,1761376246659,-488.238148,0.00020888,7]
[392343560,1761376246668,-488.238148,0.00020888,7]
[392343561,1761376246677,-488.238148,0.00020888,7]
[392343562,1761376246686,-488.238148,0.00020888,7]
[392343563,1761376246695,-488.238148,0.00020888,7]
[392343564,1761376246704,-488.238148,0.00020888,7]
[392343565,1761376246712,-488.238148,0.00020888,7]
[392343566,1761376246721,-488.238148,0.00020888,7]
[392343567,1761376246731,-488.238148,0.00020888,7]
[392343568,1761376246743,-488.238148,0.00020888,7]
[392343569,1761376246752,-151.0,0.00020888,7]
[392343570,1761376246761,-488.238148,0.00020888,7]
[392343571,1761376246769,-151.0,0.00020888,7]
[392343572,1761376246779,-488.238148,0.00020888,7]
[392343573,1761376246788,-151.0,0.00020888,7]
[392343574,1761376246798,-488.238148,0.00020888,7]
[392343575,1761376246808,-151.0,0.00020888,7]
[392343576,1761376246818,-488.238152,0.00020888,7]
[392343577,1761376246829,-151.0,0.00020888,7]
[392343578,1761376246839,-151.0,0.00020888,7]
[392343579,1761376246848,-154.21057,0.00020888,7]
[392343580,1761376246857,-151.0,0.00020888,7]
[392343581,1761376246867,-151.0,0.00020888,7]
[392343582,1761376246875,-151.0,0.00020888,7]
[392343583,1761376246885,-151.0,0.00020888,7]
[392343584,1761376246893,-151.0,0.00020888,7]
[392343585,1761376246904,-151.0,0.00020888,7]
[392343586,1761376246915,-151.0,0.00020888,7]
[392343587,1761376246924,-151.0,0.00020888,7]
[392343588,1761376246933,-151.0,0.00020888,7]
[392343589,1761376246943,-151.0,0.00020888,7]
[392343590,1761376246952,-151.0,0.00020888,7]
[392343591,1761376246963,-151.0,0.00020888,7]
[392343592,1761376246973,-162.297412,0.00020888,7]
[392343593,1761376246982,-151.0,0.00020888,7]
[392343594,1761376246991,-151.0,0.00020888,7]
[392343595,1761376247001,-151.0,0.00020888,7]
[392343596,1761376247011,-151.0,0.00020888,7]
[392343597,1761376247020,-151.0,0.00020888,7]
[392343598,1761376247032,-151.0,0.00020888,7]
[392343599,1761376247041,-151.0,0.00020888,7]
[392343600,1761376247050,-151.0,0.00020888,7]
[392343601,1761376247058,-151.0,0.00020888,7]
[392343602,1761376247067,-151.0,0.00020888,7]
[392343603,1761376247076,-151.0,0.00020888,7]
[392343604,1761376247085,-276.825587,0.00020888,7]
[392343605,1761376247095,-151.0,0.00020888,7]
[392343606,1761376247104,-151.0,0.00020888,7]
[392343607,1761376247113,-159.059753,0.00020888,7]
[392343608,1761376247123,-175.289374,0.00020888,7]
[392343609,1761376247132,-151.0,0.00020888,7]
[392343610,1761376247140,-151.0,0.00020888,7]
[392343611,1761376247149,-196.565021,0.00020888,7]
[392343612,1761376247160,-154.066923,0.00020888,7]
[392343613,1761376247170,-254.840696,0.00020888,7]
[392343614,1761376247179,-254.840696,0.00020888,7]
[392343615,1761376247188,-254.840696,0.00020888,7]
[392343616,1761376247197,-254.840696,0.00020888,7]
[392343617,1761376247206,-254.840696,0.00020888,7]
[392343618,1761376247215,-254.840696,0.00020888,7]
[392343619,1761376247224,-254.840696,0.00020888,7]
[392343620,1761376247233,-254.840696,0.00020888,7]
[392343621,1761376247241,-254.840696,0.00020888,7]
[392343622,1761376247250,-254.840696,0.00020888,7]
[392343623,1761376247259,-254.840696,0.00020888,7]
[392343624,1761376247268,-254.840694,0.00020888,7]
[392343625,1761376247277,-151.0,0.00020888,7]
[392343626,1761376247286,-263.075345,0.00020888,7]
[392343627,1761376247295,-152.333452,0.00020975,7]
[392343628,1761376247304,-151.0,0.00020975,7]
[392343629,1761376247313,-151.0,0.00020975,7]
[392343630,1761376247322,-151.0,0.00020975,7]
[392343631,1761376247331,-151.0,0.00020975,7]
[392343632,1761376247340,-151.0,0.00020975,7]
[392343633,1761376247349,-151.0,0.00020975,7]
[392343634,1761376247358,-151.228755,0.00020975,7]
[392343635,1761376247369,-171.073175,0.00020975,7]
[392343636,1761376247378,-154.23609,0.00020975,7]
[392343637,1761376247387,-151.0,0.00020975,7]
[392343638,1761376247396,-151.0,0.00020975,7]
[392343639,1761376247405,-151.0,0.00020975,7]
[392343640,1761376247414,-153.957433,0.00020975,7]
[392343641,1761376247423,-151.0,0.00020975,7]
[392343642,1761376247432,-151.0,0.00020975,7]
[392343643,1761376247441,-151.0,0.00020975,7]
[392343644,1761376247450,-151.0,0.00020975,7]
[392343645,1761376247459,-151.0,0.00020975,7]
[392343646,1761376247469,-151.0,0.00020975,7]
[392343647,1761376247478,-151.0,0.00020975,7]
[392343648,1761376247487,-151.0,0.00020975,7]
[392343649,1761376247497,-151.0,0.00020975,7]
[392343650,1761376247506,-151.0,0.00020975,7]
[392343651,1761376247516,-151.0,0.00020975,7]
[392343652,1761376247525,-151.0,0.00020975,7]
[392343653,1761376247535,-151.0,0.00020975,7]
[392343654,1761376247544,-151.0,0.00020975,7]
[392343655,1761376247554,-151.0,0.00020975,7]
[392343656,1761376247564,-211.888833,0.00020975,7]
[392343657,1761376247573,-151.0,0.00020975,7]
[392343658,1761376247583,-160.867185,0.00020975,7]
[392343659,1761376247592,-151.0,0.00020975,7]
[392343660,1761376247601,-151.0,0.00020975,7]
[392343661,1761376247611,-151.0,0.00020975,7]
[392343662,1761376247621,-151.0,0.00020975,7]
[392343663,1761376247631,-151.0,0.00020975,7]
[392343664,1761376247640,-151.0,0.00020975,7]
[392343665,1761376247650,-151.0,0.00020975,7]
[392343666,1761376247659,-151.982893,0.00020975,7]
[392343667,1761376247668,-152.444828,0.00020976,7]
[392343668,1761376247677,-154.348419,0.00020976,7]
[392343669,1761376247686,-151.0,0.00020976,7]
[392343670,1761376247695,-151.0,0.00020976,7]
[392343671,1761376247704,-151.0,0.00020976,7]
[392343672,1761376247713,-152.934795,0.00020976,7]
[392343673,1761376247724,-151.0,0.00020976,7]
[392343674,1761376247734,-151.0,0.00020976,7]
[392343675,1761376247744,-271.890692,0.00020976,7]
[392343676,1761376247753,-151.716399,0.00020976,7]
[392343677,1761376247763,-151.0,0.00020976,7]
[392343678,1761376247773,-151.0,0.00020976,7]
[392343679,1761376247781,-200.293472,0.00020976,7]
[392343680,1761376247791,-151.0,0.00020976,7]
[392343681,1761376247799,-151.0,0.00020976,7]
[392343682,1761376247811,-151.0,0.00020976,7]
[392343683,1761376247820,-151.0,0.00020976,7]
[392343684,1761376247829,-151.0,0.00020976,7]
[392343685,1761376247838,-151.0,0.00020976,7]
[392343686,1761376247846,-151.0,0.00020976,7]
[392343687,1761376247855,-151.0,0.00020976,7]
[392343688,1761376247864,-151.0,0.00020976,7]
[392343689,1761376247874,-151.0,0.00020976,7]
[392343690,1761376247883,-151.0,0.00020976,7]
[392343691,1761376247893,-151.0,0.00020976,7]
[392343692,1761376247902,-151.0,0.00020976,7]
[392343693,1761376247911,-243.187904,0.00020976,7]
[392343694,1761376247920,-151.0,0.00020976,7]
[392343695,1761376247929,-151.0,0.00020976,7]
[392343696,1761376247938,-151.0,0.00020976,7]
[392343697,1761376247947,-151.0,0.00020976,7]
[392343698,1761376247957,-151.0,0.00020976,7]
[392343699,1761376247966,-151.0,0.00020976,7]
[392343700,1761376247975,-242.30322,0.00020976,7]
[392343701,1761376247984,-153.09857,0.00020977,7]
[392343702,1761376247994,-151.0,0.00020977,7]
[392343703,1761376248223,-155.497438,0.00020977,7]
[392343704,1761376248233,-151.0,0.00020977,7]
[392343705,1761376248244,-151.0,0.00020977,7]
[392343706,1761376248253,-164.261827,0.00020977,7]
[392343707,1761376248264,-151.0,0.00020977,7]
[392343708,1761376248275,-151.0,0.00020977,7]
[392343709,1761376248284,-151.0,0.00020977,7]
[392343710,1761376248294,-151.0,0.00020977,7]
[392343711,1761376248303,-151.0,0.00020977,7]
[392343712,1761376248313,-215.863526,0.00020977,7]
[392343713,1761376248322,-151.0,0.00020977,7]
[392343714,1761376248332,-151.0,0.00020977,7]
[392343715,1761376248341,-151.0,0.00020977,7]
[392343716,1761376248351,-151.0,0.00020977,7]
[392343717,1761376248360,-151.0,0.00020977,7]
[392343718,1761376248369,-151.0,0.00020977,7]
[392343719,1761376248378,-224.313881,0.00020977,7]
[392343720,1761376248387,-250.557299,0.00020977,2]
[392343721,1761376248396,-167.07999,0.00020985,7]
[392343722,1761376248405,-152.028861,0.00020988,7]
[392343723,1761376248415,-151.0,0.00020988,7]
[392343724,1761376248424,-150.0,0.00021,2]
[392343725,1761376248433,-502.84866969,0.00021,2]
[392343726,1761376248442,-501.5047347,0.00021,2]
[392343727,1761376248451,-502.14300269,0.00021,2]
[392343728,1761376248460,-505.41084804,0.00021,2]
[392343729,1761376248470,-501.86420964,0.00021,2]
[392343730,1761376248479,-502.21783609,0.00021,2]
[392343731,1761376248488,-501.73495657,0.00021,2]
[392343732,1761376248498,-500.95542351,0.00021,2]
[392343733,1761376248507,-500.0,0.00021,2]
[392343734,1761376248517,-363.77097892,0.00021162,2]
[392343735,1761376248526,-151.0,0.00021803,7]
[392343736,1761376248535,-487.0,0.00021894,2]
[392343737,1761376248545,-151.0,0.00021901,7]
[392343738,1761376248554,-151.0,0.00021901,7]
[392343739,1761376248564,-151.0,0.00021901,7]
[392343740,1761376248573,-151.0,0.00021901,7]
[392343741,1761376248582,-151.0,0.00021901,7]
[392343742,1761376248592,-151.0,0.00021901,7]
[392343743,1761376248601,-151.0,0.00021901,7]
[392343744,1761376248611,-320.78203499,0.00022,2]
[392343745,1761376248620,-1895.0,0.00022017,2]
[392343746,1761376248629,-487.0,0.00022085,2]
[392343747,1761376248638,-502.0484723,0.0002214,2]
[392343748,1761376248648,-500.69189299,0.0002214,2]
[392343749,1761376248658,-511.65308344,0.0002214,2]
[392343750,1761376248667,-501.16652804,0.0002214,2]
[392343751,1761376248676,-483.0,0.00022156,2]
[392343752,1761376248685,-702.2906494,0.00022228,2]
[392343753,1761376248695,-483.0,0.00022243,2]
[392343754,1761376248704,-483.0,0.00022306,2]
[392343755,1761376248713,-483.0,0.00022326,2]
[392343756,1761376248722,-487.0,0.00022351,2]
[392343757,1761376248732,-483.0,0.0002251,2]
[392343758,1761376248741,-483.0,0.00022536,2]
[392343759,1761376248750,-483.0,0.00022625,2]
[392343760,1761376248759,-483.0,0.00022672,2]
[392343761,1761376248768,-668001.74879869,0.00022673,2]
[392343762,1761376248777,-420.0,0.00022723,2]
[392343763,1761376248786,-483.0,0.00022726,2]
[392343764,1761376248796,-370000.0,0.00022773,2]
[392343765,1761376248805,-151.47320951,0.00022773,2]
[392343766,1761376248814,-504.04709753,0.00022773,2]
[392343767,1761376248823,-500.0,0.00022773,2]
[392343768,1761376248832,-500.0,0.00022773,2]
[392343769,1761376248842,-500.0,0.00022773,2]
[392343770,1761376248851,-483.0,0.00022789,2]
[392343771,1761376248860,-483.0,0.00022799,2]
[392343772,1761376248869,-483.0,0.00022799,2]
[392343773,1761376248878,-160.0,0.000228,2]
[392343774,1761376248888,-221.43476804,0.00022824,2]
[392343775,1761376248897,-483.0,0.00022863,2]
[392343776,1761376248906,-483.0,0.00022869,2]
[392343777,1761376248915,-500.0,0.00022873,2]
[392343778,1761376248925,-638.91751886,0.00022873,2]
[392343779,1761376248934,-501.94156582,0.00022873,2]
[392343780,1761376248943,-500.0,0.00022873,2]
[392343781,1761376248953,-574.94340307,0.00022873,2]
[392343782,1761376248962,-632.0,0.00022879,2]
[392343783,1761376248971,-983.0,0.00022879,2]
[392343784,1761376248981,-1796.79,0.00022879,2]
[392343785,1761376248990,-348.07720104,0.00022882,2]
[392343786,1761376248999,-483.0,0.00022885,2]
[392343787,1761376249008,-483.0,0.00022925,2]
[392343788,1761376249018,-483.0,0.00022968,2]
[392343789,1761376249027,-483.0,0.00022972,2]
[392343790,1761376249036,-483.0,0.00022976,2]
[392343791,1761376249049,-483.0,0.00022991,2]
[392343792,1761376249059,-200.0,0.00023,2]
[392343793,1761376249067,-10000.0,0.00023,2]
[392343794,1761376249076,-2542.0,0.00023,2]
[392343795,1761376249085,-483.0,0.00023011,2]
[392343796,1761376249094,-3160.62,0.0002329,10]
[392343797,1761376249103,-1000.0,0.00023321,2]
[392343798,1761376249111,-1000.0,0.00023321,2]
[392343799,1761376249120,-1000.0,0.00023321,2]
[392343800,1761376249129,-260.0,0.00023348,2]
[392343801,1761376249138,-6926.0,0.0002337,2]
[392343802,1761376249146,-4755.82,0.000237,7]
[392343803,1761376249158,-519.39433043,0.00023868,2]